bitfinex/quotes_ETHUSD_20250905
["timestamp","ask_amount","ask_price","bid_price","bid_amount"]
[1757104402199,12.03565166,4336.0,4335.9,1e-08]
[1757104405913,8.19165166,4336.0,4335.9,1e-08]
[1757104406117,12.03665166,4336.0,4335.9,1e-08]
[1757104406301,12.03665166,4336.0,4335.8,1e-08]
[1757104406302,5.30632625,4335.9,4335.8,1e-08]
[1757104406621,5.78952625,4335.9,4335.8,1e-08]
[1757104406936,6.08932625,4335.9,4335.8,1e-08]
[1757104407222,9.45112625,4335.9,4335.8,1e-08]
[1757104411915,5.60612625,4335.9,4335.8,1e-08]
[1757104412114,9.45112625,4335.9,4335.8,1e-08]
[1757104416159,15.61995475,4335.2,4335.1,1.222]
[1757104422779,11.77495475,4335.2,4335.1,1.222]
[1757104422958,15.61995475,4335.2,4335.1,1.2129]
[1757104430809,5.30669865,4335.2,4335.1,1.2129]
[1757104431302,6.15169865,4335.2,4335.1,1.2129]
[1757104432197,9.15169865,4335.2,4335.1,1.2129]
[1757104433383,5.30669865,4335.2,4335.1,1.2129]
[1757104433601,9.15169865,4335.2,4335.1,1.2129]
[1757104435720,10.85169865,4335.2,4335.1,1.2129]
[1757104439826,7.00669865,4335.2,4335.1,1.2129]
[1757104440129,10.85169865,4335.2,4335.1,1.2129]
[1757104440502,7.00669865,4335.2,4335.1,1.2129]
[1757104440704,10.85169865,4335.2,4335.1,1.2129]
[1757104442624,7.00669865,4335.2,4335.1,1.2129]
[1757104442830,10.85169865,4335.2,4335.1,1.2129]
[1757104445302,7.00669865,4335.2,4335.1,1.2129]
[1757104445547,10.85169865,4335.2,4335.1,1.2129]
[1757104445702,11.14509865,4335.2,4335.1,0.004]
[1757104445898,10.85169865,4335.2,4335.1,0.004]
[1757104446508,11.14509865,4335.2,4335.1,0.004]
[1757104447375,10.85169865,4335.2,4335.1,0.004]
[1757104447734,11.14509865,4335.2,4335.1,0.004]
[1757104447922,12.07009865,4335.2,4335.1,0.004]
[1757104450800,12.86209865,4335.2,4335.1,0.004]
[1757104451366,12.86209865,4335.2,4335.1,1e-08]
[1757104451856,21.19822365,4335.2,4335.1,1e-08]
[1757104455010,15.36304665,4335.2,4335.1,1e-08]
[1757104456371,15.80584665,4335.2,4335.1,1e-08]
[1757104456681,15.06964665,4335.2,4335.1,1e-08]
[1757104456935,18.11195475,4335.2,4335.1,0.31560001]
[1757104457242,18.39915475,4335.2,4335.1,1e-08]
[1757104458043,19.30485475,4335.2,4335.1,1e-08]
[1757104459140,18.84195475,4335.2,4335.1,1e-08]
[1757104459439,18.39915475,4335.2,4335.1,1e-08]
[1757104459799,13.47495475,4335.2,4335.1,1e-08]
[1757104460000,17.31895475,4335.2,4335.1,0.31560001]
[1757104460426,17.31895475,4335.2,4335.1,1.26070001]
[1757104461192,10.85069865,4335.2,4335.1,1.26070001]
[1757104463341,10.85069865,4335.2,4335.1,0.31560001]
[1757104464252,17.31895475,4335.2,4335.1,1e-08]
[1757104464418,7.00669865,4335.2,4335.1,1.26070001]
[1757104464619,4.00669865,4335.2,4335.1,1.26070001]
[1757104464819,7.85069865,4335.2,4335.1,1.26070001]
[1757104466622,4.00669865,4335.2,4335.1,1.26070001]
[1757104466821,7.85069865,4335.2,4335.1,1.26070001]
[1757104467528,7.85169865,4335.2,4335.1,1.26070001]
[1757104469730,4.00769865,4335.2,4335.1,1.26070001]
[1757104469927,7.85169865,4335.2,4335.1,1.26070001]
[1757104474077,7.85169865,4335.2,4335.1,0.31560001]
[1757104476003,7.85169865,4335.2,4335.1,1e-08]
[1757104476460,7.85169865,4335.2,4335.1,0.31560001]
[1757104477285,8.13889865,4335.2,4335.1,1e-08]
[1757104478115,7.85169865,4335.2,4335.1,1.26070001]
[1757104479523,4.00769865,4335.2,4335.1,1.26070001]
[1757104479819,7.85169865,4335.2,4335.1,1.26070001]
[1757104481019,4.00769865,4335.2,4335.1,1.26070001]
[1757104481223,7.85169865,4335.2,4335.1,1.26070001]
[1757104482477,1.701,4335.2,4335.1,1.38927001]
[1757104482684,5.544,4335.2,4335.1,1.38927001]
[1757104486415,5.544,4335.2,4335.1,1.26070001]
[1757104486583,7.85069865,4335.2,4335.1,1.26070001]
[1757104487311,5.544,4335.2,4335.1,1.26070001]
[1757104487493,7.85069865,4335.2,4335.1,0.31560001]
[1757104488080,8.14709865,4335.2,4335.1,1e-08]
[1757104488505,9.10189865,4335.2,4335.1,1e-08]
[1757104491618,12.38206464,4335.2,4335.1,1e-08]
[1757104500404,11.88916464,4335.2,4335.1,1e-08]
[1757104500903,12.38206464,4335.2,4335.1,1e-08]
[1757104501118,13.17406464,4335.2,4335.1,1e-08]
[1757104501321,27.65713364,4335.2,4335.1,1e-08]
[1757104501922,8.86916464,4335.2,4335.1,1e-08]
[1757104502124,8.37626464,4335.2,4335.1,1e-08]
[1757104502318,12.21926464,4335.2,4335.1,1e-08]
[1757104503199,8.37626464,4335.2,4335.1,1e-08]
[1757104503394,12.21926464,4335.2,4335.1,1e-08]
[1757104504289,11.92286464,4335.2,4335.1,1e-08]
[1757104504902,7.28786464,4335.2,4335.1,1e-08]
[1757104505115,11.13086464,4335.2,4335.1,1e-08]
[1757104507431,11.42726464,4335.2,4335.1,1e-08]
[1757104508394,11.88916464,4335.2,4335.1,1e-08]
[1757104508598,12.38206464,4335.2,4335.1,1e-08]
[1757104508820,12.71216464,4335.2,4335.1,1e-08]
[1757104509130,43.17406464,4335.2,4335.1,1e-08]
[1757104509993,42.10586064,4335.2,4335.1,1e-08]
[1757104510197,39.18548664,4335.2,4335.1,1e-08]
[1757104512436,2.3069115,4334.8,4334.7,1e-08]
[1757104512614,46.7609451,4334.8,4334.7,1e-08]
[1757104512807,48.26009271,4334.8,4334.7,1e-08]
[1757104513134,6.09933733,4334.0,4333.1,0.4892]
[1757104513295,19.25337093,4334.0,4333.1,0.004]
[1757104513495,5.42259057,4333.9,4333.8,1e-08]
[1757104514001,6.92516395,4333.9,4333.8,1e-08]
[1757104514432,21.09610995,4333.9,4333.8,1e-08]
[1757104515231,21.88810995,4333.9,4333.8,1e-08]
[1757104515423,20.81952895,4333.9,4333.8,1e-08]
[1757104516097,12.09673495,4333.9,4333.8,1e-08]
[1757104519529,12.09673495,4333.9,4333.1,0.004]
[1757104519530,3.0995503,4333.6,4333.1,0.004]
[1757104519732,9.9435503,4333.6,4333.1,0.004]
[1757104519945,10.49602641,4333.6,4333.1,0.004]
[1757104520455,9.40002641,4333.6,4333.5,1.2515]
[1757104520615,5.55602641,4333.6,4333.5,1.2515]
[1757104520820,9.40002641,4333.6,4333.5,1.2515]
[1757104521366,6.40002641,4333.6,4333.5,1.2515]
[1757104521522,2.55602641,4333.6,4333.5,1.2515]
[1757104521956,6.40002641,4333.6,4333.5,1.37745]
[1757104522161,0.1152,4333.7,4333.5,8.8625336]
[1757104522473,3.844,4333.6,4333.5,7.9184336]
[1757104522837,3.844,4333.6,4333.5,8.8625336]
[1757104526341,0.1152,4333.7,4333.6,2.3075503]
[1757104526548,3.121,4333.7,4333.6,4.62329461]
[1757104526742,0.001,4333.9,4333.6,2.59606968]
[1757104527060,3.844,4333.8,4333.7,3.25159705]
[1757104527384,0.001,4333.9,4333.8,2.30744381]
[1757104527585,3.845,4333.9,4333.8,3.25154381]
[1757104527877,3.845,4333.9,4333.8,5.03754822]
[1757104527878,0.001,4333.9,4333.8,5.03754822]
[1757104528654,0.001,4333.9,4333.8,8.03754822]
[1757104528971,0.026,4334.8,4334.3,2.30717762]
[1757104529153,0.026,4334.8,4334.3,9.94128299]
[1757104529350,0.026,4334.8,4334.3,10.22161122]
[1757104529576,0.026,4334.8,4334.3,12.94933004]
[1757104531081,0.026,4334.8,4334.3,15.94933004]
[1757104533152,0.026,4334.8,4334.3,20.14933004]
[1757104535461,0.026,4334.8,4334.7,2.30696472]
[1757104535671,0.026,4334.8,4334.7,10.40246704]
[1757104535880,0.026,4334.8,4334.7,11.6268974]
[1757104536189,0.026,4334.8,4334.7,18.8268974]
[1757104536492,0.001,4335.2,4335.1,12.91778546]
[1757104536658,0.001,4335.2,4335.1,16.75978546]
[1757104536858,0.001,4335.2,4335.1,20.12355532]
[1757104537076,0.001,4335.2,4335.1,20.21599502]
[1757104537470,0.001,4335.2,4335.1,25.52637282]
[1757104540308,0.001,4335.2,4335.1,29.72637282]
[1757104540875,0.001,4335.2,4335.1,30.51837282]
[1757104541212,0.001,4335.2,4335.1,37.68837282]
[1757104542210,0.001,4336.1,4336.0,2.30627306]
[1757104542384,0.025,4336.8,4336.7,2.3059008]
[1757104542584,0.025,4336.8,4336.7,19.0129122]
[1757104542810,0.025,4336.8,4336.7,20.50240332]
[1757104543017,0.001,4337.1,4337.0,8.76644699]
[1757104543204,0.001,4337.1,4337.0,12.61144699]
[1757104543402,0.001,4337.1,4337.0,16.13615496]
[1757104547807,0.001,4337.1,4337.0,19.13615496]
[1757104548486,0.001,4337.1,4337.0,23.33615496]
[1757104548685,0.001,4338.1,4337.7,2.3053692]
[1757104548912,0.001,4338.1,4337.7,19.0707806]
[1757104549119,0.001,4338.1,4337.7,22.59548857]
[1757104549502,0.001,4338.1,4337.7,16.13478287]
[1757104549819,0.001,4338.1,4337.7,22.59548857]
[1757104550009,0.001,4338.1,4337.9,2.30526291]
[1757104550204,0.001,4338.1,4337.9,9.17131553]
[1757104550404,0.001,4338.1,4337.9,12.67297088]
[1757104552236,0.001,4338.1,4337.9,12.78817088]
[1757104553096,0.001,4338.1,4337.9,12.88054974]
[1757104555131,0.001,4338.1,4337.9,22.28345544]
[1757104555311,0.001,4338.1,4337.9,22.58205544]
[1757104556834,0.001,4338.1,4337.9,29.04276114]
[1757104557135,0.001,4338.1,4337.9,29.51396114]
[1757104557313,0.001,4338.1,4337.9,30.00096114]
[1757104558797,0.001,4338.1,4337.9,23.05325544]
[1757104559135,0.001,4338.1,4337.9,29.90858228]
[1757104559835,0.001,4338.1,4337.9,23.44787658]
[1757104560338,0.001,4338.1,4337.9,29.90858228]
[1757104560510,0.001,4338.1,4337.9,29.0225122]
[1757104560837,0.001,4338.1,4337.9,28.72391217]
[1757104561034,0.2877,4338.0,4337.9,22.26320647]
[1757104561344,0.001,4338.0,4337.9,22.26320647]
[1757104561503,0.001,4338.0,4337.9,30.30151217]
[1757104561836,0.001,4338.5,4337.9,30.30151217]
[1757104561837,0.001,4338.5,4338.4,2.30499723]
[1757104562000,0.001,4338.5,4338.4,13.57908838]
[1757104562227,0.001,4338.5,4338.4,18.05463841]
[1757104562664,0.001,4338.5,4338.4,18.52583841]
[1757104563250,0.001,4338.5,4338.4,18.05463841]
[1757104563630,0.2877,4338.5,4338.4,17.75603841]
[1757104564767,1.2126,4338.5,4338.4,4.27212989]
[1757104565064,1.2126,4338.5,4338.4,6.57712712]
[1757104566271,0.2877,4338.5,4338.4,6.57712671]
[1757104566933,0.2877,4338.5,4338.4,2.37712671]
[1757104567137,0.2877,4338.5,4338.4,4.64503468]
[1757104567366,0.2877,4338.5,4338.4,8.48703468]
[1757104568335,0.2877,4338.5,4338.4,12.68703468]
[1757104569144,0.001,4338.5,4338.4,12.68703468]
[1757104569369,0.001,4338.5,4338.4,12.98783468]
[1757104569577,0.001,4338.5,4338.4,13.44103468]
[1757104569872,0.001,4338.5,4338.4,12.24623468]
[1757104570179,0.025,4338.8,4338.7,2.30483785]
[1757104570331,0.001,4338.9,4338.8,18.22619613]
[1757104570531,0.001,4338.9,4338.8,13.05001991]
[1757104571034,0.001,4338.9,4338.8,13.05000374]
[1757104571670,0.001,4338.9,4338.8,6.53162925]
[1757104571868,0.001,4338.9,4338.8,8.79953722]
[1757104572767,0.001,4338.9,4338.8,7.88793722]
[1757104572967,0.001,4338.9,4338.8,8.34113722]
[1757104573385,0.001,4338.9,4338.8,7.88793722]
[1757104574073,0.001,4338.9,4338.8,8.79953722]
[1757104574752,0.001,4338.9,4338.8,8.91473722]
[1757104575591,0.001,4338.9,4338.8,8.84262391]
[1757104577064,0.001,4338.9,4338.8,7.93102391]
[1757104577278,0.001,4338.9,4338.8,7.63022391]
[1757104578200,0.001,4338.9,4338.8,7.93102391]
[1757104578403,0.001,4338.9,4338.8,8.38422391]
[1757104578570,0.001,4338.9,4338.8,8.84262391]
[1757104579102,0.001,4338.9,4338.8,7.63022391]
[1757104579796,0.001,4338.9,4338.8,7.93102391]
[1757104580812,0.001,4338.9,4338.8,19.75422391]
[1757104581107,0.001,4338.9,4338.8,19.00022391]
[1757104581405,0.001,4338.9,4338.8,19.30102391]
[1757104582622,0.001,4338.9,4338.8,21.00462391]
[1757104584483,0.001,4338.9,4338.8,20.54622391]
[1757104584802,0.001,4338.9,4338.8,21.00462391]
[1757104587311,0.001,4338.9,4338.8,19.79222391]
[1757104588221,0.001,4338.9,4338.8,19.00022391]
[1757104588434,0.001,4338.9,4338.8,20.57031594]
[1757104588435,0.3037,4338.9,4338.8,20.57031594]
[1757104588717,1.2437,4338.9,4338.8,20.57031594]
[1757104588923,0.746,4338.9,4338.8,20.57031594]
[1757104589421,1.2437,4338.9,4338.8,20.57031594]
[1757104590428,0.8014,4338.9,4338.8,20.57031594]
[1757104590623,0.3037,4338.9,4338.8,20.57031594]
[1757104591128,0.3037,4338.9,4338.8,20.57431594]
[1757104592234,0.001,4338.9,4338.8,20.57431594]
[1757104592440,0.001,4338.9,4338.8,22.84222391]
[1757104593010,0.001,4338.9,4338.8,23.14302391]
[1757104593408,0.001,4338.9,4338.8,30.50609225]
[1757104593626,0.001,4339.4,4339.3,6.50251916]
[1757104594009,0.3037,4339.4,4339.3,6.50251916]
[1757104594214,0.746,4339.4,4339.3,6.50251916]
[1757104594414,0.3037,4339.4,4339.3,6.50251916]
[1757104594722,1.2437,4339.4,4339.3,6.50251916]
[1757104596151,1.2437,4339.4,4338.7,2.30480666]
[1757104596152,28.059623,4339.3,4337.9,0.004]
[1757104596310,4.21062154,4339.3,4337.9,0.004]
[1757104596512,0.3027,4338.0,4337.9,0.004]
[1757104596950,1.2366,4338.0,4337.9,0.004]
[1757104597648,3.54180977,4338.0,4337.9,0.004]
[1757104598222,6.54180977,4338.0,4337.9,0.004]
[1757104599865,13.70029361,4337.9,4337.8,1e-08]
[1757104600246,14.89249361,4337.9,4337.8,1e-08]
[1757104601478,7.28946291,4337.9,4337.8,1e-08]
[1757104601842,7.48298251,4337.9,4337.8,1e-08]
[1757104603519,7.28946291,4337.9,4337.8,1e-08]
[1757104603941,6.49746291,4337.9,4337.8,1e-08]
[1757104604342,10.38446291,4337.9,4337.8,1e-08]
[1757104605243,11.17646291,4337.9,4337.8,1e-08]
[1757104609072,9.49456291,4337.9,4337.8,1e-08]
[1757104609456,9.93186291,4337.9,4337.8,1e-08]
[1757104609785,9.93186291,4337.9,4337.8,0.00400001]
[1757104609989,9.93286291,4337.9,4337.8,0.00400001]
[1757104610294,10.38446291,4337.9,4337.8,0.00400001]
[1757104610950,9.49656291,4337.9,4337.8,0.00400001]
[1757104611511,6.49656291,4337.9,4337.8,0.00400001]
[1757104612698,6.93386291,4337.9,4337.8,0.00400001]
[1757104613404,2.30542235,4337.6,4336.9,0.004]
[1757104613603,2.30574129,4337.0,4336.9,0.004]
[1757104613821,2.60904129,4337.0,4336.9,0.004]
[1757104613973,6.19374129,4337.0,4336.9,0.004]
[1757104614164,2.30574129,4337.0,4336.9,0.004]
[1757104614506,6.19374129,4337.0,4336.9,0.004]
[1757104614706,6.49704129,4337.0,4336.9,0.004]
[1757104618099,6.49704129,4337.0,4336.9,0.315]
[1757104618100,6.19374129,4337.0,4336.9,0.315]
[1757104618298,2.30567301,4337.2,4336.9,5.2453]
[1757104618516,3.886,4337.1,4337.0,1.48963]
[1757104618699,3.886,4337.1,4337.0,1.2732]
[1757104619271,3.886,4337.1,4337.0,0.8022]
[1757104619471,6.19168813,4337.1,4337.0,0.311]
[1757104619675,2.30574129,4337.0,4336.9,3.9721]
[1757104619906,3.886,4337.1,4337.0,1.2732]
[1757104620413,3.888,4337.1,4337.0,1.2732]
[1757104620576,0.1152,4337.2,4337.0,4.10634404]
[1757104620907,3.888,4337.1,4337.0,0.83843]
[1757104621111,3.888,4337.1,4337.0,0.311]
[1757104621407,3.888,4337.1,4337.0,1.2732]
[1757104622331,3.888,4337.1,4337.0,3.57893339]
[1757104622713,0.1152,4337.2,4337.1,2.30568813]
[1757104623017,4.0022,4337.2,4337.1,3.26788813]
[1757104623186,4.0022,4337.2,4337.1,3.57888813]
[1757104623387,0.1152,4337.2,4337.1,4.56746182]
[1757104623598,3.887,4337.3,4337.2,2.30561492]
[1757104623810,3.887,4337.3,4337.2,3.57881492]
[1757104624325,0.1152,4337.7,4337.2,5.2413]
[1757104624490,0.001,4337.9,4337.8,2.30531605]
[1757104624692,0.735,4338.7,4337.8,1.01386662]
[1757104624892,0.735,4338.7,4338.3,2.61605036]
[1757104625296,3.92,4338.8,4338.3,3.57825036]
[1757104625612,0.026,4338.8,4338.3,3.60130086]
[1757104626318,0.026,4338.8,4338.3,3.57825036]
[1757104626491,0.026,4338.8,4338.3,5.3161686]
[1757104628537,0.026,4338.8,4338.3,8.3161686]
[1757104628841,0.026,4338.8,4338.3,9.1081686]
[1757104630837,0.026,4338.8,4338.7,9.27193785]
[1757104631013,0.026,4338.8,4338.7,13.17693785]
[1757104631220,0.026,4338.8,4338.7,16.0394618]
[1757104632534,1e-08,4338.9,4338.8,6.09678473]
[1757104632734,0.001,4339.3,4339.2,6.09657227]
[1757104632932,0.001,4339.3,4339.2,10.28717227]
[1757104633094,0.001,4339.3,4339.2,11.22057227]
[1757104633294,0.001,4339.3,4339.2,13.48848024]
[1757104634541,0.001,4339.3,4339.2,13.60368024]
[1757104635121,0.001,4339.3,4339.2,9.70068024]
[1757104635324,0.001,4339.3,4339.2,13.60968024]
[1757104636547,0.001,4339.3,4339.2,17.46158024]
[1757104637250,1e-08,4339.8,4339.7,2.30430674]
[1757104637546,1e-08,4339.8,4339.7,9.70421737]
[1757104637745,1e-08,4339.8,4339.7,10.90217431]
[1757104637911,1e-08,4339.8,4339.7,24.7349837]
[1757104640359,0.025,4341.8,4339.7,24.7349837]
[1757104640360,0.025,4341.8,4340.7,3.09577588]
[1757104640526,0.025,4341.8,4340.9,5.30366974]
[1757104640726,0.025,4341.8,4340.9,6.52466974]
[1757104644264,3.57167637,4342.8,4340.9,6.52466974]
[1757104644265,0.025,4342.8,4340.9,7.359]
[1757104644489,0.025,4342.8,4342.7,2.3027149]
[1757104644644,0.025,4342.8,4342.7,9.2217149]
[1757104644954,0.3011,4342.8,4342.7,9.2217149]
[1757104646231,0.025,4342.8,4342.7,9.5093149]
[1757104646633,0.025,4342.8,4342.7,9.6237149]
[1757104647037,0.025,4342.8,4342.7,9.3361149]
[1757104647948,0.00092437,4343.0,4342.9,2.30260885]
[1757104648131,0.00092437,4343.0,4342.9,23.07644432]
[1757104648453,0.00092437,4343.0,4342.9,24.27441824]
[1757104649118,0.00092437,4343.0,4342.9,11.23360885]
[1757104649324,2.30093974,4346.1,4343.9,6.09407877]
[1757104649325,1e-08,4344.0,4343.9,6.09407877]
[1757104649562,1e-08,4344.0,4343.9,10.86170512]
[1757104650357,1e-08,4344.0,4343.9,11.14930512]
[1757104651266,1e-08,4344.0,4343.9,12.08270512]
[1757104651555,1e-08,4344.0,4343.9,10.02207877]
[1757104651945,0.27610001,4344.0,4343.9,10.02207877]
[1757104652147,1e-08,4344.0,4343.9,11.24307877]
[1757104653236,0.4661,4345.8,4345.7,2.30112525]
[1757104653533,0.7422,4345.8,4345.7,2.30112525]
[1757104656250,0.7422,4345.8,4345.6,2.30116061]
[1757104656451,0.9463,4345.7,4345.4,2.30128254]
[1757104656661,0.278,4345.5,4345.4,2.30128254]
[1757104656848,0.4821,4347.1,4345.5,3.0]
[1757104657161,0.4661,4347.0,4346.7,2.30059585]
[1757104657549,0.3011,4346.8,4346.7,2.30059585]
[1757104657858,0.3011,4346.8,4346.7,2.25059585]
[1757104658649,0.7653,4346.8,4346.7,2.25059585]
[1757104659287,1.2551,4346.8,4346.5,0.1144]
[1757104659491,0.954,4346.7,4346.2,2.30083126]
[1757104659784,0.954,4346.7,4346.2,2.30086052]
[1757104659953,0.2862,4346.3,4346.1,2.41529395]
[1757104660154,0.7404,4346.3,4346.1,0.1144]
[1757104660792,0.7404,4346.3,4346.2,2.30086052]
[1757104660975,0.1394,4346.8,4346.6,2.30062136]
[1757104661150,0.2728,4346.7,4346.6,2.30062136]
[1757104661481,0.025,4346.8,4346.7,2.30059585]
[1757104662969,0.2978,4346.8,4346.6,0.1144]
[1757104663169,0.7653,4346.8,4346.6,0.1144]
[1757104663354,0.7653,4346.8,4346.6,2.30064814]
[1757104663679,0.7653,4346.8,4345.9,5.30098571]
[1757104663680,0.2978,4346.8,4346.2,0.1144]
[1757104663884,0.4685,4346.7,4346.2,0.1144]
[1757104664070,0.2747,4346.3,4346.2,2.41523175]
[1757104664391,0.001,4346.7,4346.2,0.4288]
[1757104664691,0.001,4346.7,4346.6,0.1144]
[1757104664984,0.001,4346.7,4346.6,2.41504878]
[1757104665190,0.2738,4346.7,4346.6,2.41504878]
[1757104665349,0.2738,4346.7,4346.6,0.1144]
[1757104665557,1.2311,4346.7,4346.4,2.30074465]
[1757104665754,0.7636,4346.7,4346.4,2.30074465]
[1757104665968,0.4675,4346.6,4346.2,2.41524566]
[1757104666183,0.2747,4346.3,4346.2,0.1144]
[1757104666748,0.2747,4346.3,4345.2,3.99736416]
[1757104667057,0.7403,4346.3,4346.1,2.30089826]
[1757104667260,0.2747,4346.3,4345.9,0.1144]
[1757104667482,0.2747,4346.3,4345.8,2.30107156]
[1757104667483,0.9554,4346.2,4345.8,2.30107156]
[1757104667658,0.2862,4345.9,4345.8,2.30107156]
[1757104667857,0.2862,4345.9,4345.7,2.30111537]
[1757104668275,0.2862,4345.9,4345.6,0.1144]
[1757104668789,0.7404,4345.9,4345.6,0.1144]
[1757104668975,0.2862,4345.9,4345.8,2.30107229]
[1757104669555,0.1144,4346.3,4346.1,2.30086285]
[1757104670276,0.3872,4346.3,4346.1,2.30086285]
[1757104670479,0.3872,4346.3,4345.5,0.8928]
[1757104670480,3.919,4346.6,4346.2,0.0230086]
[1757104670685,3.919,4346.6,4346.5,2.30070171]
[1757104670999,4.1918,4346.6,4346.5,2.30070171]
[1757104671287,4.1918,4346.6,4346.2,2.30084955]
[1757104671492,0.2728,4346.6,4346.5,2.30070171]
[1757104671894,0.2728,4346.6,4346.3,2.30078057]
[1757104672265,0.2728,4346.6,4346.4,2.30075267]
[1757104672667,0.001,4346.7,4346.6,2.30064878]
[1757104672880,0.001,4346.7,4346.6,2.62721541]
[1757104673192,0.2872,4346.7,4346.6,2.62721541]
[1757104673582,0.7414,4346.7,4346.6,2.62721541]
[1757104673954,0.7414,4346.7,4346.6,0.32656663]
[1757104674154,0.7414,4346.7,4346.6,0.21216663]
[1757104674381,0.2872,4346.7,4346.6,0.21216663]
[1757104674565,1.2312,4346.7,4346.6,0.21216663]
[1757104674777,3.53179585,4346.7,4346.6,0.21216663]
[1757104674979,0.1144,4346.6,4345.9,0.1144]
[1757104675185,3.918,4346.5,4346.1,2.30090469]
[1757104675373,4.3875,4346.5,4346.2,0.21267683]
[1757104675571,4.3875,4346.5,4346.3,0.21267683]
[1757104675876,3.918,4346.5,4346.4,0.2128118]
[1757104676061,4.1908,4346.5,4346.4,0.2128118]
[1757104676257,5.1481,4346.5,4346.4,0.2128118]
[1757104676578,5.1481,4346.5,4346.4,2.51356644]
[1757104676579,0.2728,4346.5,4346.4,2.51356644]
[1757104676783,0.2728,4346.5,4346.4,0.2128118]
[1757104676988,0.2728,4346.5,4346.4,2.51356644]
[1757104677292,0.2728,4346.5,4346.4,0.21296781]
[1757104677467,0.2728,4346.5,4346.4,2.51372245]
[1757104677660,0.2728,4346.5,4346.4,0.21296781]
[1757104677861,4.0324,4346.6,4346.4,2.51372245]
[1757104678189,0.1144,4346.6,4346.5,2.53667653]
[1757104678390,0.001,4346.7,4346.6,2.30064878]
[1757104678688,0.001,4346.7,4346.6,2.97311659]
[1757104678889,0.001,4346.7,4346.6,2.82801659]
[1757104680879,0.001,4346.7,4346.6,6.28751659]
[1757104681079,0.001,4346.7,4346.6,11.50907842]
[1757104681392,0.001,4346.7,4346.6,11.62347842]
[1757104681991,0.001,4346.7,4346.6,12.41547842]
[1757104682794,0.001,4347.2,4346.7,3.0]
[1757104682995,0.001,4347.2,4347.1,0.1144]
[1757104683198,0.001,4347.2,4347.1,0.64176781]
[1757104683361,0.001,4347.2,4347.1,2.62775197]
[1757104683568,0.2738,4347.2,4347.1,2.62775197]
[1757104683862,0.2738,4347.2,4347.1,0.21296781]
[1757104684196,0.2872,4347.2,4347.1,2.51335197]
[1757104684396,0.7414,4347.2,4347.1,0.32736781]
[1757104684582,0.2872,4347.2,4347.1,0.21296781]
[1757104684899,0.7414,4347.2,4347.1,0.21296781]
[1757104685266,1.2312,4347.2,4347.1,0.21296781]
[1757104686004,3.53153124,4347.2,4347.1,0.21296781]
[1757104686406,5.1542,4347.2,4347.1,0.21296781]
[1757104686617,7.45453124,4347.2,4347.1,0.21296781]
[1757104686814,2.30049008,4346.9,4346.0,0.1144]
[1757104686979,5.1542,4347.2,4346.0,0.1144]
[1757104686980,2.30046199,4347.0,4346.3,2.3007717]
[1757104687172,0.1144,4346.8,4346.4,0.21347261]
[1757104687376,0.4542,4346.7,4346.5,0.21347261]
[1757104687708,0.4542,4346.7,4346.6,0.21347261]
[1757104688197,0.7404,4346.7,4346.6,0.21347261]
[1757104688507,0.1144,4346.8,4346.6,0.21347261]
[1757104688710,4.0374,4347.2,4346.7,0.21347261]
[1757104688884,4.0374,4347.2,4346.9,2.30048276]
[1757104689085,0.1154,4347.2,4346.9,2.30048276]
[1757104689285,3.922,4347.1,4347.0,0.21347066]
[1757104689492,4.1948,4347.1,4347.0,0.21347066]
[1757104690377,4.1948,4347.1,4347.0,0.21345396]
[1757104690607,7.39838416,4347.1,4347.0,0.21345396]
[1757104691184,6.92548416,4347.1,4347.0,0.21345396]
[1757104691606,6.92548416,4347.1,4347.0,0.15582239]
[1757104692113,6.92548416,4347.1,4346.5,2.30070115]
[1757104692418,0.1144,4347.0,4346.5,2.30070115]
[1757104692916,2.41484132,4347.0,4346.5,2.30070115]
[1757104693112,0.2877,4346.6,4346.4,2.30074267]
[1757104693414,0.2877,4346.6,4343.0,0.004]
[1757104693415,4.2077,4346.6,4345.8,0.025]
[1757104693615,0.4303,4346.5,4345.8,0.1394]
[1757104693836,2.73100503,4346.5,4345.9,2.30097792]
[1757104694003,2.30070503,4346.5,4345.9,2.30097792]
[1757104694350,4.0344,4346.6,4345.8,0.1394]
[1757104694351,0.2877,4346.0,4345.8,0.1394]
[1757104694530,6.22301935,4345.9,4345.8,0.025]
[1757104694702,2.30067575,4346.6,4345.8,0.025]
[1757104694703,0.1144,4346.5,4346.2,2.30084555]
[1757104695035,0.1144,4346.5,4346.3,2.30078931]
[1757104695727,0.1144,4346.5,4346.4,2.30075464]
[1757104696334,0.1144,4346.5,4346.4,0.3144]
[1757104696735,4.0424,4346.5,4346.4,0.3144]
[1757104697916,4.0424,4346.5,4346.4,2.30075464]
[1757104698115,4.0424,4346.5,4346.1,2.76307587]
[1757104698312,4.0424,4346.5,4346.3,2.30078021]
[1757104698645,4.0424,4346.5,4346.3,2.30076154]
[1757104699003,4.0424,4346.5,4346.4,2.30075464]
[1757104699332,0.1144,4346.8,4346.5,2.30069847]
[1757104699509,3.926,4346.7,4346.5,2.30069847]
[1757104699705,0.1144,4346.8,4346.6,2.6150099]
[1757104699906,3.926,4346.7,4346.6,2.6150099]
[1757104700504,0.1144,4346.8,4346.7,2.30059585]
[1757104700739,0.1144,4346.8,4346.7,2.76279585]
[1757104700923,3.214,4346.8,4346.7,3.53349585]
[1757104701105,3.214,4346.8,4346.7,0.3144]
[1757104701640,3.214,4346.8,4346.5,0.1144]
[1757104701641,3.5017,4346.8,4346.5,0.1144]
[1757104701841,3.6161,4346.8,4346.3,2.3048025]
[1757104702008,4.0464,4346.8,4346.3,2.3048025]
[1757104702637,3.925,4346.7,4346.3,0.9225]
[1757104702842,3.925,4346.7,4346.3,3.22330106]
[1757104703032,3.925,4346.7,4346.3,0.004]
[1757104703215,3.925,4346.7,4346.3,2.30478857]
[1757104703422,0.2877,4346.4,4346.3,0.004]